fUSD/lending_fUSD_20250620
["ID","MTS","AMOUNT","RATE_DAILY","PERIOD"]
[366704497,1750415556269,-249.55227,0.00027035,7]
[366704498,1750415556278,-249.55227,0.00027035,7]
[366704499,1750415556288,-851.127774,0.00027035,7]
[366704500,1750415556298,-851.127774,0.00027035,7]
[366704501,1750415556308,-151.0,0.00027035,7]
[366704502,1750415556318,-316.98,0.00027035,7]
[366704503,1750415556327,-316.98,0.00027035,7]
[366704504,1750415556337,-151.77675645,0.0002704,2]
[366704505,1750415556347,-151.0,0.00027049,7]
[366704506,1750415556357,-151.0,0.00027049,7]
[366704507,1750415556367,-65572.5542275,0.00027049,2]
[366704508,1750415556376,-5797.6217449,0.00027049,2]
[366704509,1750415556386,-8542.7772822,0.00027067,2]
[366704510,1750415556396,-16449.1876221,0.00027067,2]
[366704511,1750415556405,-180214.4605972,0.00027067,2]
[366704512,1750415556415,-262.658617,0.00027084,7]
[366704513,1750415556424,-262.658617,0.00027084,7]
[366704514,1750415556434,-855.14,0.00027091,4]
[366704515,1750415556444,-490.0,0.00027091,4]
[366704516,1750415556453,-490.0,0.00027091,4]
[366704517,1750415556462,-941.29,0.00027091,4]
[366704518,1750415556472,-1474.28,0.00027091,4]
[366704519,1750415556482,-710.39,0.00027101,4]
[366704520,1750415556491,-2657.88,0.00027101,4]
[366704521,1750415556502,-678.91,0.00027101,4]
[366704522,1750415556513,-951.97,0.00027101,4]
[366704523,1750415556522,-934.95,0.00027101,4]
[366704524,1750415556532,-982.82,0.00027101,4]
[366704525,1750415556542,-490.0,0.00027101,4]
[366704526,1750415556551,-490.0,0.00027101,4]
[366704527,1750415556562,-1196.7,0.00027101,4]
[366704528,1750415556572,-905.13,0.00027101,4]
[366704529,1750415556582,-490.0,0.00027101,4]
[366704530,1750415556592,-733.67,0.00027101,4]
[366704531,1750415556602,-623.14,0.00027101,4]
[366704532,1750415556611,-858.58,0.00027101,4]
[366704533,1750415556621,-4996.22,0.00027101,4]
[366704534,1750415556632,-1411.02,0.00027101,4]
[366704535,1750415556642,-490.0,0.00027101,4]
[366704536,1750415556652,-490.0,0.00027101,4]
[366704537,1750415556662,-566.53,0.00027101,4]
[366704538,1750415556672,-673.04,0.00027101,4]
[366704539,1750415556682,-1000.0,0.00027101,4]
[366704540,1750415556692,-560.81,0.00027101,4]
[366704541,1750415556702,-5470.75,0.00027101,4]
[366704542,1750415556713,-490.0,0.00027101,4]
[366704543,1750415556722,-490.0,0.00027101,2]
[366704544,1750415556732,-2781.24,0.00027101,4]
[366704545,1750415556743,-608.76,0.00027101,4]
[366704546,1750415556752,-501.29087952,0.00027101,4]
[366704547,1750415556762,-622.46,0.00027101,4]
[366704548,1750415556773,-2671.47,0.00027101,4]
[366704549,1750415556783,-490.0,0.00027101,4]
[366704550,1750415556793,-807.14,0.00027101,4]
[366704551,1750415556803,-50876.6630119,0.00027104,2]
[366704552,1750415556812,-4511.8272644,0.00027104,2]
[366704553,1750415556821,-490.0,0.00027112,4]
[366704554,1750415556831,-490.0,0.00027112,4]
[366704555,1750415556841,-490.0,0.00027112,4]
[366704556,1750415556850,-490.0,0.00027112,4]
[366704557,1750415556860,-490.0,0.00027112,4]
[366704558,1750415556869,-490.0,0.00027112,4]
[366704559,1750415556880,-525.64,0.00027112,4]
[366704560,1750415556890,-490.0,0.00027112,4]
[366704561,1750415556899,-490.0,0.00027112,4]
[366704562,1750415556909,-490.0,0.00027112,4]
[366704563,1750415556919,-490.0,0.00027112,4]
[366704564,1750415556928,-824.86,0.00027112,4]
[366704565,1750415556938,-490.0,0.00027112,4]
[366704566,1750415556947,-490.0,0.00027112,4]
[366704567,1750415556957,-490.0,0.00027112,4]
[366704568,1750415556967,-490.0,0.00027112,4]
[366704569,1750415556976,-1042.35,0.00027112,4]
[366704570,1750415556985,-2063.423116,0.00027112,4]
[366704571,1750415556994,-1129.83,0.00027112,4]
[366704572,1750415557005,-490.0,0.00027112,4]
[366704573,1750415557015,-490.0,0.00027112,4]
[366704574,1750415557025,-2980.629608,0.00027112,4]
[366704575,1750415557035,-1443.11,0.00027112,4]
[366704576,1750415557045,-6813.75,0.00027112,4]
[366704577,1750415557055,-490.0,0.00027112,4]
[366704578,1750415557065,-977.73,0.00027112,4]
[366704579,1750415557075,-1060.66,0.00027112,4]
[366704580,1750415557084,-1271.04,0.00027112,4]
[366704581,1750415557094,-490.0,0.00027112,4]
[366704582,1750415557104,-1687.17,0.00027112,4]
[366704583,1750415557114,-248.67940128,0.00027112,4]
[366704584,1750415557123,-490.0,0.00027112,4]
[366704585,1750415557133,-1425.44,0.00027112,4]
[366704586,1750415557143,-490.0,0.00027112,4]
[366704587,1750415557153,-1260.23,0.00027112,4]
[366704588,1750415557163,-535.62,0.00027112,4]
[366704589,1750415557173,-600.47,0.00027112,4]
[366704590,1750415557182,-490.0,0.00027112,4]
[366704591,1750415557192,-7447.5,0.00027112,4]
[366704592,1750415557202,-490.0,0.00027112,4]
[366704593,1750415557212,-490.0,0.00027112,4]
[366704594,1750415557221,-490.0,0.00027112,4]
[366704595,1750415557231,-998.98,0.00027112,4]
[366704596,1750415557241,-490.0,0.00027112,4]
[366704597,1750415557251,-1377.1,0.00027112,4]
[366704598,1750415557260,-490.0,0.00027112,4]
[366704599,1750415557271,-4861.36,0.00027112,4]
[366704600,1750415557281,-1977.29,0.00027112,4]
[366704601,1750415557291,-490.0,0.00027112,4]
[366704602,1750415557301,-1276.4,0.00027112,4]
[366704603,1750415557311,-2235.26,0.00027112,4]
[366704604,1750415557321,-2488.9,0.00027112,4]
[366704605,1750415557331,-1190.82,0.00027112,4]
[366704606,1750415557340,-712.91,0.00027112,4]
[366704607,1750415557349,-1879.2,0.00027112,4]
[366704608,1750415557359,-490.0,0.00027112,4]
[366704609,1750415557368,-3348.43,0.00027112,4]
[366704610,1750415557377,-2145.92,0.00027112,4]
[366704611,1750415557387,-3119.56,0.00027112,4]
[366704612,1750415557396,-3273.4,0.00027112,4]
[366704613,1750415557405,-490.0,0.00027113,4]
[366704614,1750415557415,-490.0,0.00027113,4]
[366704615,1750415557424,-490.0,0.00027113,4]
[366704616,1750415557434,-490.0,0.00027113,4]
[366704617,1750415557444,-490.0,0.00027113,4]
[366704618,1750415557453,-1480.37,0.00027113,4]
[366704619,1750415557463,-490.0,0.00027113,4]
[366704620,1750415557474,-1643.1,0.00027113,4]
[366704621,1750415557483,-490.0,0.00027113,4]
[366704622,1750415557493,-490.0,0.00027113,4]
[366704623,1750415557502,-565.51,0.00027113,4]
[366704624,1750415557512,-492.45,0.00027113,4]
[366704625,1750415557522,-2032.33,0.00027113,4]
[366704626,1750415557532,-880.4,0.00027113,4]
[366704627,1750415557542,-490.0,0.00027113,4]
[366704628,1750415557552,-490.0,0.00027113,4]
[366704629,1750415557562,-1088.85,0.00027113,4]
[366704630,1750415557572,-490.0,0.00027113,4]
[366704631,1750415557581,-848.08,0.00027113,4]
[366704632,1750415557592,-490.0,0.00027113,4]
[366704633,1750415557602,-912.78,0.00027113,4]
[366704634,1750415557612,-1634.09,0.00027113,4]
[366704635,1750415557622,-1838.84,0.00027113,4]
[366704636,1750415557631,-895.29,0.00027113,4]
[366704637,1750415557640,-669.38,0.00027113,4]
[366704638,1750415557650,-818.8,0.00027113,4]
[366704639,1750415557660,-490.0,0.00027113,4]
[366704640,1750415557669,-1627.01,0.00027113,4]
[366704641,1750415557679,-490.0,0.00027113,4]
[366704642,1750415557688,-490.0,0.00027113,4]
[366704643,1750415557698,-490.0,0.00027113,4]
[366704644,1750415557708,-1078.58,0.00027113,4]
[366704645,1750415557718,-994.67,0.00027113,4]
[366704646,1750415557728,-771.65,0.00027113,4]
[366704647,1750415557737,-490.0,0.00027113,4]
[366704648,1750415557747,-490.0,0.00027113,4]
[366704649,1750415557757,-490.0,0.00027113,4]
[366704650,1750415557766,-694.41,0.00027113,4]
[366704651,1750415557776,-679.99,0.00027113,4]
[366704652,1750415557786,-490.0,0.00027113,4]
[366704653,1750415557797,-2362.55,0.00027113,4]
[366704654,1750415557807,-490.0,0.00027113,4]
[366704655,1750415557818,-490.0,0.00027113,4]
[366704656,1750415557827,-490.0,0.00027113,4]
[366704657,1750415557837,-592.8,0.00027113,4]
[366704658,1750415557848,-490.0,0.00027113,4]
[366704659,1750415557860,-490.0,0.00027113,4]
[366704660,1750415557870,-490.0,0.00027113,4]
[366704661,1750415557880,-542.79,0.00027113,4]
[366704662,1750415557890,-1385.22,0.00027113,4]
[366704663,1750415557901,-1591.3,0.00027113,4]
[366704664,1750415557910,-490.0,0.00027113,4]
[366704665,1750415557921,-1073.69,0.00027113,4]
[366704666,1750415557931,-490.0,0.00027113,4]
[366704667,1750415557942,-616.36,0.00027113,4]
[366704668,1750415557951,-490.0,0.00027113,4]
[366704669,1750415557962,-490.0,0.00027113,4]
[366704670,1750415557973,-490.0,0.00027113,4]
[366704671,1750415557983,-583.29,0.00027113,4]
[366704672,1750415557994,-1175.68,0.00027113,4]
[366704673,1750415558004,-1312.24,0.00027113,4]
[366704674,1750415558014,-1363.77,0.00027113,4]
[366704675,1750415558024,-490.0,0.00027113,4]
[366704676,1750415558036,-770.8,0.00027113,4]
[366704677,1750415558046,-997.01,0.00027113,4]
[366704678,1750415558057,-989.39,0.00027113,4]
[366704679,1750415558066,-567.86,0.00027113,4]
[366704680,1750415558076,-1096.04,0.00027113,4]
[366704681,1750415558086,-1520.45,0.00027113,4]
[366704682,1750415558096,-490.0,0.00027113,4]
[366704683,1750415558106,-805.39,0.00027113,4]
[366704684,1750415558116,-490.0,0.00027113,4]
[366704685,1750415558127,-490.0,0.00027113,4]
[366704686,1750415558141,-596.59,0.00027113,4]
[366704687,1750415558151,-1428.58,0.00027113,4]
[366704688,1750415558161,-490.0,0.00027113,4]
[366704689,1750415558171,-490.0,0.00027113,4]
[366704690,1750415558181,-5382.53,0.00027113,4]
[366704691,1750415558191,-490.0,0.00027113,4]
[366704692,1750415558200,-703.96,0.00027113,4]
[366704693,1750415558211,-1669.54,0.00027113,4]
[366704694,1750415558221,-1601.56,0.00027113,4]
[366704695,1750415558231,-2721.61,0.00027113,4]
[366704696,1750415558241,-490.0,0.00027113,4]
[366704697,1750415558251,-741.54,0.00027113,4]
[366704698,1750415558261,-669.76,0.00027113,4]
[366704699,1750415558271,-1225.01,0.00027113,4]
[366704700,1750415558281,-2422.36,0.00027113,4]
[366704701,1750415558291,-1005.68,0.00027113,4]
[366704702,1750415558301,-490.0,0.00027113,4]
[366704703,1750415558312,-2138.59,0.00027113,4]
[366704704,1750415558323,-490.0,0.00027113,4]
[366704705,1750415558333,-998.16,0.00027113,4]
[366704706,1750415558344,-4396.87,0.00027113,4]
[366704707,1750415558354,-933.76,0.00027113,4]
[366704708,1750415558365,-897.22,0.00027113,4]
[366704709,1750415558374,-1489.74,0.00027113,4]
[366704710,1750415558385,-2632.99,0.00027113,4]
[366704711,1750415558395,-490.0,0.00027113,4]
[366704712,1750415558405,-2115.45,0.00027113,4]
[366704713,1750415558415,-1788.12,0.00027113,4]
[366704714,1750415558425,-969.59,0.00027113,4]
[366704715,1750415558436,-587.84,0.00027113,4]
[366704716,1750415558446,-490.0,0.00027113,4]
[366704717,1750415558456,-747.47,0.00027113,4]
[366704718,1750415558467,-629.05,0.00027113,4]
[366704719,1750415558478,-1158.39,0.00027113,4]
[366704720,1750415558488,-4900.18,0.00027113,4]
[366704721,1750415558498,-490.0,0.00027113,4]
[366704722,1750415558508,-1552.28,0.00027113,4]
[366704723,1750415558518,-540.28,0.00027113,4]
[366704724,1750415558529,-218.91,0.00027113,4]
[366704725,1750415558539,-1986.49,0.00027113,4]
[366704726,1750415558550,-2142.56,0.00027113,4]
[366704727,1750415558560,-675.46,0.00027113,4]
[366704728,1750415558570,-2131.24,0.00027113,4]
[366704729,1750415558580,-1335.47,0.00027113,4]
[366704730,1750415558590,-894.67,0.00027113,4]
[366704731,1750415558600,-3901.98,0.00027113,4]
[366704732,1750415558609,-694.78,0.00027113,4]
[366704733,1750415558620,-748.02,0.00027113,4]
[366704734,1750415558630,-2210.45,0.00027113,4]
[366704735,1750415558640,-1823.65,0.00027113,4]
[366704736,1750415558650,-1839.21,0.00027113,4]
[366704737,1750415558659,-951.3,0.00027113,4]
[366704738,1750415558669,-490.0,0.00027113,4]
[366704739,1750415558679,-828.87,0.00027113,4]
[366704740,1750415558690,-828.66,0.00027113,4]
[366704741,1750415558699,-2336.71,0.00027113,4]
[366704742,1750415558709,-490.0,0.00027113,4]
[366704743,1750415558720,-1193.56,0.00027113,4]
[366704744,1750415558731,-1201.91,0.00027113,4]
[366704745,1750415558741,-1533.32,0.00027113,4]
[366704746,1750415558751,-2402.13,0.00027113,4]
[366704747,1750415558761,-2054.14,0.00027113,4]
[366704748,1750415558772,-1310.9,0.00027113,4]
[366704749,1750415558782,-6479.3393426,0.00027114,2]
[366704750,1750415558792,-12701.5666526,0.00027114,2]
[366704751,1750415558802,-139825.4268068,0.00027114,2]
[366704752,1750415558812,-507.78430478,0.00027116,2]
[366704753,1750415558822,-2000.0,0.00027119,2]
[366704754,1750415558831,-2000.9568,0.00027119,2]
[366704755,1750415558842,-490.0,0.00027123,4]
[366704756,1750415558852,-490.0,0.00027123,4]
[366704757,1750415558862,-490.0,0.00027123,4]
[366704758,1750415558872,-490.0,0.00027123,4]
[366704759,1750415558881,-490.0,0.00027123,4]
[366704760,1750415558891,-490.0,0.00027123,4]
[366704761,1750415558901,-490.0,0.00027123,4]
[366704762,1750415558911,-490.0,0.00027123,4]
[366704763,1750415558920,-490.0,0.00027123,4]
[366704764,1750415558931,-490.0,0.00027123,4]
[366704765,1750415558941,-490.0,0.00027123,4]
[366704766,1750415558951,-490.0,0.00027123,4]
[366704767,1750415558961,-490.0,0.00027123,4]
[366704768,1750415558972,-536.23,0.00027123,4]
[366704769,1750415558982,-490.0,0.00027123,4]
[366704770,1750415558992,-490.0,0.00027123,4]
[366704771,1750415559003,-490.0,0.00027123,4]
[366704772,1750415559014,-589.813561,0.00027123,4]
[366704773,1750415559024,-686.65,0.00027123,4]
[366704774,1750415559033,-490.0,0.00027123,4]
[366704775,1750415559044,-897.84,0.00027123,4]
[366704776,1750415559053,-793.14,0.00027123,4]
[366704777,1750415559063,-490.0,0.00027123,4]
[366704778,1750415559074,-656.19,0.00027123,4]
[366704779,1750415559084,-490.0,0.00027123,4]
[366704780,1750415559095,-624.06,0.00027123,4]
[366704781,1750415559106,-490.0,0.00027123,4]
[366704782,1750415559116,-568.83,0.00027123,4]
[366704783,1750415559127,-402.69,0.00027123,4]
[366704784,1750415559141,-490.0,0.00027123,4]
[366704785,1750415559151,-490.0,0.00027123,4]
[366704786,1750415559162,-697.89,0.00027123,4]
[366704787,1750415559172,-490.0,0.00027123,4]
[366704788,1750415559183,-490.0,0.00027123,4]
[366704789,1750415559193,-490.0,0.00027123,4]
[366704790,1750415559203,-724.36,0.00027123,4]
[366704791,1750415559212,-490.0,0.00027123,4]
[366704792,1750415559222,-490.0,0.00027123,4]
[366704793,1750415559232,-490.0,0.00027123,4]
[366704794,1750415559241,-1029.22,0.00027123,4]
[366704795,1750415559251,-490.0,0.00027123,4]
[366704796,1750415559261,-490.0,0.00027123,4]
[366704797,1750415559272,-490.0,0.00027123,4]
[366704798,1750415559282,-490.0,0.00027123,4]
[366704799,1750415559292,-490.0,0.00027123,4]
[366704800,1750415559302,-490.0,0.00027123,4]
[366704801,1750415559312,-490.0,0.00027123,4]
[366704802,1750415559321,-490.0,0.00027123,4]
[366704803,1750415559331,-490.0,0.00027123,4]
[366704804,1750415559340,-490.0,0.00027123,4]
[366704805,1750415559350,-490.0,0.00027123,4]
[366704806,1750415559359,-817.57,0.00027123,4]
[366704807,1750415559368,-490.0,0.00027123,4]
[366704808,1750415559378,-490.0,0.00027123,4]
[366704809,1750415559387,-490.0,0.00027123,4]
[366704810,1750415559397,-860.55,0.00027123,4]
[366704811,1750415559407,-490.0,0.00027123,4]
[366704812,1750415559417,-490.0,0.00027123,4]
[366704813,1750415559426,-490.0,0.00027123,4]
[366704814,1750415559436,-490.0,0.00027123,4]
[366704815,1750415559445,-490.0,0.00027123,4]
[366704816,1750415559455,-199.32835586,0.00027123,4]
[366704817,1750415559465,-490.0,0.00027123,4]
[366704818,1750415559475,-490.0,0.00027123,4]
[366704819,1750415559484,-490.0,0.00027123,4]
[366704820,1750415559493,-490.0,0.00027123,4]
[366704821,1750415559503,-490.0,0.00027123,4]
[366704822,1750415559513,-490.0,0.00027123,4]
[366704823,1750415559523,-490.0,0.00027123,4]
[366704824,1750415559533,-490.0,0.00027123,4]
[366704825,1750415559543,-499.57488968,0.00027123,4]
[366704826,1750415559552,-490.0,0.00027123,4]
[366704827,1750415559562,-490.0,0.00027123,4]
[366704828,1750415559571,-650.85,0.00027123,4]
[366704829,1750415559581,-490.0,0.00027123,4]
[366704830,1750415559590,-490.0,0.00027123,4]
[366704831,1750415559600,-490.0,0.00027123,4]
[366704832,1750415559610,-666.55,0.00027123,4]
[366704833,1750415559620,-490.0,0.00027123,4]
[366704834,1750415559629,-411.37432585,0.00027123,4]
[366704835,1750415559638,-490.0,0.00027123,4]
[366704836,1750415559648,-490.0,0.00027123,4]
[366704837,1750415559658,-490.0,0.00027123,4]
[366704838,1750415559668,-490.0,0.00027123,4]
[366704839,1750415559678,-490.0,0.00027123,4]
[366704840,1750415559688,-490.0,0.00027123,4]
[366704841,1750415559699,-449.75251406,0.00027123,4]
[366704842,1750415559708,-490.0,0.00027123,4]
[366704843,1750415559719,-490.0,0.00027123,4]
[366704844,1750415559729,-490.0,0.00027123,4]
[366704845,1750415559739,-490.0,0.00027123,4]
[366704846,1750415559749,-490.0,0.00027123,4]
[366704847,1750415559759,-497.02,0.00027123,4]
[366704848,1750415559769,-362.90337486,0.00027123,4]
[366704849,1750415559780,-490.0,0.00027123,4]
[366704850,1750415559789,-490.0,0.00027123,4]
[366704851,1750415559800,-561.45,0.00027123,4]
[366704852,1750415559810,-490.0,0.00027123,4]
[366704853,1750415559820,-569.04711347,0.00027123,4]
[366704854,1750415559830,-490.0,0.00027123,4]
[366704855,1750415559840,-490.0,0.00027123,4]
[366704856,1750415559850,-490.0,0.00027123,4]
[366704857,1750415559859,-490.0,0.00027123,4]
[366704858,1750415559869,-673.68,0.00027123,4]
[366704859,1750415559879,-490.0,0.00027123,4]
[366704860,1750415559889,-490.0,0.00027123,4]
[366704861,1750415559899,-798.5,0.00027123,4]
[366704862,1750415559909,-490.0,0.00027123,4]
[366704863,1750415559919,-490.0,0.00027123,4]
[366704864,1750415559929,-490.0,0.00027123,4]
[366704865,1750415559939,-330.70389658,0.00027123,4]
[366704866,1750415559949,-490.0,0.00027123,4]
[366704867,1750415559959,-814.97,0.00027123,4]
[366704868,1750415559969,-490.0,0.00027123,4]
[366704869,1750415559979,-2237.34,0.00027123,4]
[366704870,1750415559989,-490.0,0.00027123,4]
[366704871,1750415559999,-997.34,0.00027123,4]
[366704872,1750415560009,-792.52,0.00027123,4]
[366704873,1750415560019,-490.0,0.00027123,4]
[366704874,1750415560029,-490.0,0.00027123,4]
[366704875,1750415560038,-490.0,0.00027123,4]
[366704876,1750415560190,-749.65,0.00027123,4]
[366704877,1750415560246,-490.0,0.00027123,4]
[366704878,1750415560258,-490.0,0.00027123,4]
[366704879,1750415560268,-490.0,0.00027123,4]
[366704880,1750415560279,-870.19,0.00027123,4]
[366704881,1750415560289,-661.75,0.00027123,4]
[366704882,1750415560300,-490.0,0.00027123,4]
[366704883,1750415560309,-508.02,0.00027123,4]
[366704884,1750415560319,-490.0,0.00027123,4]
[366704885,1750415560329,-490.0,0.00027123,4]
[366704886,1750415560339,-1294.95,0.00027123,4]
[366704887,1750415560350,-490.0,0.00027123,4]
[366704888,1750415560360,-490.0,0.00027123,4]
[366704889,1750415560370,-490.0,0.00027123,4]
[366704890,1750415560380,-860.83,0.00027123,4]
[366704891,1750415560391,-490.0,0.00027123,4]
[366704892,1750415560401,-161.41221903,0.00027123,4]
[366704893,1750415560413,-490.0,0.00027123,4]
[366704894,1750415560422,-686.43,0.00027123,4]
[366704895,1750415560433,-1554.68,0.00027123,4]
[366704896,1750415560443,-490.0,0.00027123,4]
[366704897,1750415560453,-490.0,0.00027123,4]
[366704898,1750415560463,-490.0,0.00027123,4]
[366704899,1750415560474,-490.0,0.00027123,4]
[366704900,1750415560493,-490.0,0.00027123,4]
[366704901,1750415560504,-490.0,0.00027123,4]
[366704902,1750415560516,-620.11,0.00027123,4]
[366704903,1750415560528,-490.0,0.00027123,4]
[366704904,1750415560540,-490.0,0.00027123,4]
[366704905,1750415560551,-615.89194816,0.00027123,4]
[366704906,1750415560563,-591.54,0.00027123,4]
[366704907,1750415560574,-757.27,0.00027123,4]
[366704908,1750415560585,-1692.44,0.00027123,4]
[366704909,1750415560596,-490.0,0.00027123,4]
[366704910,1750415560608,-490.0,0.00027123,4]
[366704911,1750415560619,-1478.21,0.00027123,4]
[366704912,1750415560630,-490.0,0.00027123,4]
[366704913,1750415560641,-1664.77,0.00027123,4]
[366704914,1750415560652,-490.0,0.00027123,4]
[366704915,1750415560664,-513.53,0.00027123,4]
[366704916,1750415560675,-1643.07,0.00027123,4]
[366704917,1750415560686,-2421.62,0.00027123,4]
[366704918,1750415560697,-214.10402905,0.00027123,4]
[366704919,1750415560708,-490.0,0.00027123,4]
[366704920,1750415560718,-1002.75,0.00027123,4]
[366704921,1750415560729,-1171.85,0.00027123,4]
[366704922,1750415560741,-490.0,0.00027123,4]
[366704923,1750415560752,-490.0,0.00027123,4]
[366704924,1750415560764,-490.0,0.00027123,4]
[366704925,1750415560775,-490.0,0.00027123,4]
[366704926,1750415560787,-490.0,0.00027123,4]
[366704927,1750415560798,-490.0,0.00027123,4]
[366704928,1750415560808,-490.0,0.00027123,4]
[366704929,1750415560819,-513.94,0.00027123,4]
[366704930,1750415560830,-1052.23,0.00027123,4]
[366704931,1750415560840,-1203.58,0.00027123,4]
[366704932,1750415560852,-1052.12,0.00027123,4]
[366704933,1750415560863,-490.0,0.00027123,4]
[366704934,1750415560873,-451.4035784,0.00027123,4]
[366704935,1750415560884,-1116.54,0.00027123,4]
[366704936,1750415560895,-490.0,0.00027123,4]
[366704937,1750415560911,-490.0,0.00027123,4]
[366704938,1750415560922,-593.05,0.00027123,4]
[366704939,1750415560934,-490.0,0.00027123,4]
[366704940,1750415560945,-713.86,0.00027123,4]
[366704941,1750415560956,-576.72,0.00027123,4]
[366704942,1750415560967,-1207.78,0.00027123,4]
[366704943,1750415560978,-490.0,0.00027123,4]
[366704944,1750415560989,-490.0,0.00027123,4]
[366704945,1750415561000,-885.97,0.00027123,4]
[366704946,1750415561011,-1286.94,0.00027123,4]
[366704947,1750415561022,-774.59,0.00027123,4]
[366704948,1750415561033,-663.64,0.00027123,4]
[366704949,1750415561044,-490.0,0.00027123,4]
[366704950,1750415561055,-490.0,0.00027123,4]
[366704951,1750415561067,-689.38,0.00027123,4]
[366704952,1750415561078,-556.07,0.00027123,4]
[366704953,1750415561089,-490.0,0.00027123,4]
[366704954,1750415561102,-490.0,0.00027123,4]
[366704955,1750415561113,-929.62,0.00027123,4]
[366704956,1750415561125,-852.86,0.00027123,4]
[366704957,1750415561137,-540.11,0.00027123,4]
[366704958,1750415561148,-490.0,0.00027123,4]
[366704959,1750415561160,-490.0,0.00027123,4]
[366704960,1750415561171,-490.0,0.00027123,4]
[366704961,1750415561182,-490.0,0.00027123,4]
[366704962,1750415561193,-549.5,0.00027123,4]
[366704963,1750415561205,-490.0,0.00027123,4]
[366704964,1750415561216,-719.33,0.00027123,4]
[366704965,1750415561227,-490.0,0.00027123,4]
[366704966,1750415561239,-490.0,0.00027123,4]
[366704967,1750415561251,-490.0,0.00027123,4]
[366704968,1750415561263,-992.43,0.00027123,4]
[366704969,1750415561274,-1178.9,0.00027123,4]
[366704970,1750415561285,-490.0,0.00027123,4]
[366704971,1750415561296,-2120.13,0.00027123,4]
[366704972,1750415561307,-490.0,0.00027123,4]
[366704973,1750415561319,-490.0,0.00027123,4]
[366704974,1750415561330,-797.21,0.00027123,4]
[366704975,1750415561347,-2831.45,0.00027123,4]
[366704976,1750415561358,-1657.46,0.00027123,4]
[366704977,1750415561369,-490.0,0.00027123,4]
[366704978,1750415561380,-1176.63,0.00027123,4]
[366704979,1750415561390,-835.13,0.00027123,4]
[366704980,1750415561401,-640.77,0.00027123,4]
[366704981,1750415561412,-490.0,0.00027123,4]
[366704982,1750415561422,-955.18,0.00027123,4]
[366704983,1750415561433,-759.69,0.00027123,4]
[366704984,1750415561444,-495.19,0.00027123,4]
[366704985,1750415561454,-1620.75,0.00027123,4]
[366704986,1750415561465,-2608.35,0.00027123,4]
[366704987,1750415561475,-1487.07,0.00027123,4]
[366704988,1750415561486,-490.0,0.00027123,4]
[366704989,1750415561496,-620.7,0.00027123,4]
[366704990,1750415561506,-2196.02,0.00027123,4]
[366704991,1750415561517,-490.0,0.00027123,4]
[366704992,1750415561527,-490.0,0.00027123,4]
[366704993,1750415561538,-2048.55,0.00027123,4]
[366704994,1750415561549,-618.01000407,0.00027123,4]
[366704995,1750415561560,-1452.89,0.00027123,4]
[366704996,1750415561571,-676.1,0.00027123,4]